[Event "Mitropa Cup Women 2022"]
[Site "Corte"]
[Date "2022.05.05"]
[Round "6.3"]
[White "Radikovic, Anamarija"]
[Black "Butenandt, Svenja"]
[Result "1/2-1/2"]
[ECO "B23"]
[WhiteElo "2133"]
[BlackElo "2086"]
[Annotator "TA"]
[PlyCount "80"]
[EventDate "2022.04.30"]
[EventType "team-tourn"]
[EventCountry "FRA"]
[SourceTitle "playchess.com"]
[Source "ChessBase"]
[SourceQuality "1"]
[WhiteTeam "Croatia"]
[BlackTeam "Germany"]
[WhiteTeamCountry "CRO"]
[BlackTeamCountry "GER"]
[TimeControl "40/5400+30:1800+30"]

{[%evp 17,80,72,159,52,43,0,208,89,84,95,88,79,100,58,72,-18,-17,-14,16,10,44,-43,-54,-90,-68,-162,-162,-159,-152,-178,-170,-197,-197,-187,-194,-197,-172,-184,-153,-179,-189,-173,-144,-178,-94,-170,-104,-219,-217,-206,-89,-256,-68,-92,0,0,0,0,0,0,0,0,0,0,0]} 1. e4 {[%emt 0:00:04]} c5 {[%emt 0:00:05]} 2. Nc3 {[%emt 0:00:03]} e6 {[%emt 0:00:08]} 3. Nge2 {[%emt 0:00:05]} a6 {[%emt 0:00:05]} 4. g3 {[%emt 0:00:04]} b5 {[%emt 0:00:14]} 5. Bg2 {[%emt 0:00:08]} Bb7 {[%emt 0:00:03]} 6. O-O {[%emt 0:00:17]} d6 {[%emt 0:00:29]} 7. d4 {[%emt 0:00:26]} cxd4 {[%emt 0:00:12]} 8. Nxd4 {[%emt 0:00:05]} Qc7 {[%emt 0:02:40]} 9. Re1 {[%emt 0:00:57]} Nf6 {[%emt 0:01:31] [#]} (9... Nd7 $142) 10. Bg5 {[%emt 0:05:31] B43: Sicilian: Kan Variation: 5 Nc3.} (10. Nd5 $1 $16 {[%mdl 512]} exd5 (10... Nxd5 11. exd5) 11. exd5+ Kd8 12. Bg5) 10... Be7 $14 {[%emt 0:01:20]} 11. Bxf6 {[%emt 0:02:19]} gxf6 {[%emt 0:02:28]} (11... Bxf6 $11 12. Ndxb5 axb5 13. Nxb5 Qb6 14. Nxd6+ Ke7) 12. a4 {[%emt 0:04:04]} (12. Qh5 $18 {and the rest is easy.} Kf8 13. Bh3) 12... b4 $16 {[%emt 0:01:50]} 13. Na2 {[%emt 0:00:05] [#] White is more active.} Qb6 $146 {[%emt 0:03:46]} ({Predecessor:} 13... Qc5 14. Nb3 Qc7 15. Nxb4 Nd7 16. Nd3 Rc8 17. c3 O-O 18. Nd4 Ne5 19. Nf4 Kh8 {1-0 (54) Karykowska,A (1999)-Mazur,A (1731) Poronin 2020}) 14. c3 {[%emt 0:04:27] Black must now prevent Qh5.} bxc3 {[%emt 0:03:16]} 15. Nxc3 {[%emt 0:08:19]} Nc6 {[%emt 0:02:38]} 16. Nf5 {[%emt 0:17:39]} exf5 $11 {[%emt 0:30:56]} 17. Nd5 {[%emt 0:00:05]} Qd8 {[%emt 0:03:12][%cal Of5f4]} (17... Qxb2 $2 18. exf5 Kf8 19. Rb1 $18) 18. exf5 {[%emt 0:00:57]} Rb8 {[%emt 0:02:14]} 19. Qd2 {[%emt 0:25:35]} ({Much weaker is} 19. Nxf6+ Kf8 20. Bxc6 Bxf6 21. Re8+ Qxe8 22. Bxe8 (22. Qxd6+ Kg7 $17) 22... Rxe8 $15) (19. Qh5 $14 Ne5 20. Rad1) 19... Ne5 $15 {[%emt 0:13:58]} 20. Nxe7 {[%emt 0:01:13]} Kxe7 {[%emt 0:02:47]} 21. f4 {[%emt 0:20:47]} ({White should play} 21. Rad1 $1 $15) 21... Qb6+ $19 {[%emt 0:00:37]} 22. Kh1 {[%emt 0:02:42]} Bxg2+ {[%emt 0:00:51]} 23. Qxg2 {[%emt 0:00:47] [#]} Qxb2 $1 {[%emt 0:00:48]} 24. fxe5 {[%emt 0:00:44]} (24. Qe4 Qb7) 24... Qxg2+ {[%emt 0:01:36]} (24... fxe5 25. Qf3 Qb7 26. Re4) 25. Kxg2 $17 {[%emt 0:00:05][%mdl 4096] Endgame KRR-KRR} Rb2+ {[%emt 0:01:02]} ({Stronger than} 25... dxe5 26. Rab1 $17) 26. Kh3 {[%emt 0:00:08]} fxe5 {[%emt 0:00:05]} 27. Rac1 {[%emt 0:01:00]} Kd7 {[%emt 0:00:32] Inhibits Rc7+.} 28. Red1 {[%emt 0:02:07]} Rhb8 {[%emt 0:05:39]} 29. Rd5 {[%emt 0:01:30]} R8b6 {[%emt 0:02:42]} 30. Rcd1 {[%emt 0:00:40]} Kc7 {[%emt 0:00:50]} ({Black should try} 30... Ke7 $19 {And now ...h5 would win.} 31. Rc1 Ra2) 31. R5d3 {[%emt 0:01:22]} (31. a5 $17 Rc6 32. Kg4) 31... Ra2 {[%emt 0:00:41]} ({Better is} 31... f6 $19 32. a5 Rc6) 32. Rc3+ {[%emt 0:00:19]} (32. Kg4 $17 {is a better defense.}) 32... Rc6 $19 {[%emt 0:00:16]} 33. Rb3 {[%emt 0:00:07]} Rcc2 {[%emt 0:10:17]} (33... h6 $19 {and Black stays clearly on top. Hoping for ...Rcc2.} 34. a5 Rcc2) 34. Rdb1 $2 {[%emt 0:00:05]} (34. Kh4 $17) 34... Rxh2+ $2 {[%emt 0:00:07]} (34... f6 $19 {is more deadly.} 35. g4 Rxh2+ 36. Kg3 Rhg2+ 37. Kh3 Kc6) 35. Kg4 $17 {[%emt 0:00:03]} f6 {[%emt 0:00:21]} (35... Kc6 $17 {Threatens to win with ...f6.} 36. Rb6+ Kd5 37. Rxa6 f6 38. Rd1+ (38. Rb5+ {is a self mate.} Ke4 39. Rb4+ Ke3 40. Rb3+ Ke2) 38... Rad2 39. Rxd2+ Rxd2) 36. Rc3+ $11 {[%emt 0:00:14] The position is equal.} Kd7 {[%emt 0:00:42]} 37. Rb7+ {[%emt 0:00:05]} Kd8 38. Rb8+ {[%emt 0:00:20]} Kd7 {[%emt 0:00:10]} 39. Rb7+ {[%emt 0:01:22]} Kd8 {[%emt 0:00:04]} 40. Rb8+ {[%emt 0:02:20]} Kd7 {[%emt 0:00:10] Black had all chances to win.  Weighted Error Value: White=0.41/Black=0.38} 1/2-1/2

[Event "Mitropa Cup Women 2022"]
[Site "Corte"]
[Date "2022.05.05"]
[Round "6.3"]
[White "Hund, Sarah"]
[Black "Janzelj, Lara"]
[Result "0-1"]
[ECO "C41"]
[WhiteElo "2086"]
[BlackElo "2191"]
[Annotator "TA"]
[PlyCount "76"]
[EventDate "2022.04.30"]
[EventType "team-tourn"]
[EventCountry "FRA"]
[SourceTitle "playchess.com"]
[Source "ChessBase"]
[SourceQuality "1"]
[WhiteTeam "Switzerland"]
[BlackTeam "Slovenia"]
[WhiteTeamCountry "SUI"]
[BlackTeamCountry "SLO"]
[TimeControl "40/5400+30:1800+30"]

{[%evp 16,76,43,9,45,36,48,36,49,27,27,32,33,14,26,17,15,6,30,0,0,0,0,0,16,0,0,2,19,-6,8,9,9,11,106,0,0,0,0,0,0,0,0,0,0,0,0,0,0,-4,0,-5,-7,-2,-7,-43,-11,-12,70,-508,-506,-801,-761]} 1. e4 {[%emt 0:00:03]} d6 {[%emt 0:00:12]} 2. d4 {[%emt 0:00:14]} Nf6 {[%emt 0:00:06]} 3. Nc3 {[%emt 0:00:20]} e5 {[%emt 0:00:09]} 4. Nf3 {[%emt 0:00:23]} Nbd7 {[%emt 0:00:05]} 5. Bc4 {[%emt 0:00:37]} Be7 {[%emt 0:00:10]} 6. O-O {[%emt 0:00:29]} O-O {[%emt 0:00:11]} 7. Re1 {[%emt 0:00:53]} c6 {[%emt 0:00:17]} 8. a4 {[%emt 0:00:57]} Qc7 {[%emt 0:04:16]} 9. a5 {[%emt 0:04:02]} h6 {[%emt 0:01:00] C41: Philidor Defence.} 10. h3 {[%emt 0:01:45]} Re8 {[%emt 0:00:13]} 11. Be3 {[%emt 0:02:24]} Bf8 {[%emt 0:01:31] White is slightly better. 11...exd4 is a critical line.} 12. Bb3 {[%emt 0:04:35]} exd4 {[%emt 0:06:15]} 13. Bxd4 {[%emt 0:01:52]} Ne5 {[%emt 0:00:05]} 14. Nh4 {[%emt 0:02:42] With the idea f4.} Be6 {[%emt 0:11:15]} 15. Bxe6 {[%emt 0:04:06]} Rxe6 {[%emt 0:00:10]} 16. Nf5 {[%emt 0:02:34]} Ned7 {[%emt 0:08:38]} 17. Qd2 {[%emt 0:06:27] [#]} Rae8 $146 {[%emt 0:05:09]} ({Predecessor:} 17... a6 18. Qf4 Rae8 19. f3 Qd8 20. Red1 d5 21. Kh1 Ne5 22. exd5 cxd5 23. g4 g6 {½-½ (48) Vasquez,F (1947)-Nichols,S (2089) FICGS email 2009}) 18. f3 {[%emt 0:08:40]} d5 {[%emt 0:04:00]} 19. exd5 {[%emt 0:04:58]} (19. Bxa7 {keeps more tension.} dxe4 20. Nxe4 Nxe4 21. Rxe4 Rxe4 22. fxe4 Nc5 23. Bb6) 19... Rxe1+ {[%emt 0:00:16]} 20. Rxe1 {[%emt 0:00:14]} Rxe1+ {[%emt 0:00:11]} 21. Qxe1 {[%emt 0:00:15] Black should prevent dxc6.} Qxa5 {[%emt 0:00:49]} 22. dxc6 {[%emt 0:02:53]} Qxf5 23. cxd7 Nxd7 {[%emt 0:09:04]} 24. Qe4 {[%emt 0:07:27]} Qg5 {[%emt 0:05:34]} (24... Qxe4 $11 {remains equal.} 25. Nxe4 b6) 25. Nd5 {[%emt 0:03:58]} ({And not} 25. Qxb7 Qc1+ 26. Kf2 Qxc2+ 27. Ne2 Nc5 $11) (25. f4 $16 Qh4 26. Qxb7 (26. Bxa7 b6 $11)) 25... Nc5 $11 {[%emt 0:05:14]} 26. Qe5 {[%emt 0:03:46]} Qc1+ {[%emt 0:00:09]} 27. Kh2 {[%emt 0:01:00]} Ne6 {[%emt 0:01:27]} 28. Bxa7 {[%emt 0:04:54]} Qxc2 {[%emt 0:01:19]} 29. f4 {[%emt 0:02:45]} b5 {[%emt 0:08:14]} 30. Be3 {[%emt 0:04:15]} Qc6 {[%emt 0:02:51]} 31. Kh1 {[%emt 0:03:37]} Bd6 {[%emt 0:01:52]} 32. Qe4 {[%emt 0:00:51]} Qd7 {[%emt 0:00:26] Against Ne7+} (32... Qa6 {is more complex.} 33. Qc2 Qa1+ 34. Kh2 Qa8) 33. Bd2 {[%emt 0:05:10]} Nc5 {[%emt 0:03:05]} 34. Qf3 {[%emt 0:01:24]} Qf5 {[%emt 0:00:49] White must now prevent ...Qb1+.} 35. Bc3 {[%emt 0:03:31]} Qb1+ {[%emt 0:04:29]} 36. Kh2 {[%emt 0:00:12]} Ne4 {[%emt 0:01:02]} (36... Ne6 $11) 37. Bd4 $2 {[%emt 0:01:25][%mdl 8192] [#]} (37. Qg4 $14 {stays ahead.} Ng5 38. Qd7) 37... Nd2 $1 $19 {[%emt 0:00:54]} 38. Qc3 {[%emt 0:08:02]} (38. Qf2 $142 Nf1+ 39. Kh1 Ne3+ 40. Qg1 Qxg1+ 41. Kxg1 Nxd5 42. f5) 38... Nf1+ {[%emt 0:00:28] Weighted Error Value: White=0.53/Black=0.16 (very precise)} 0-1

[Event "Mitropa Cup Women 2022"]
[Site "Corte"]
[Date "2022.05.05"]
[Round "6.4"]
[White "Leconte, Maria"]
[Black "Gueci, Tea"]
[Result "0-1"]
[ECO "B23"]
[WhiteElo "2211"]
[BlackElo "2248"]
[Annotator "TA"]
[PlyCount "138"]
[EventDate "2022.04.30"]
[EventType "team-tourn"]
[EventCountry "FRA"]
[SourceTitle "playchess.com"]
[Source "ChessBase"]
[SourceQuality "1"]
[WhiteTeam "France"]
[BlackTeam "Italy"]
[WhiteTeamCountry "FRA"]
[BlackTeamCountry "ITA"]
[TimeControl "40/5400+30:1800+30"]

{[%evp 9,138,5,0,-7,0,-7,22,12,14,0,8,0,44,25,46,57,36,0,65,33,29,23,60,54,73,44,60,72,116,42,55,41,107,35,153,105,85,26,23,26,27,38,30,15,17,0,0,0,0,-43,-26,-120,-120,-118,-118,-118,-77,-596,-594,-591,-570,-565,-555,-837,-816,-675,-175,-163,-165,-166,-159,-164,-162,-162,-138,-146,-145,-285,-282,-494,-493,-466,-472,-621,-615,-591,-582,-1079,-1024,-921,-896,-1095,-1089,-867,-775,-925,-374,-1335,-1328,-675,-36,-12677,-11484,-9404,-6811,-1695,-1689,-29976,-29977,-29976,-29979,-29979,-29980,-29980,-29981,-29981,-29976,-29983,-29976,-29976,-29977,-29977,-29978,-29978,-29976,-29976,-29976,-29979,-29980,-29983,-29984]} 1. e4 {[%emt 0:00:07]} c5 {[%emt 0:00:03]} 2. Nc3 {[%emt 0:00:09]} a6 {[%emt 0:00:04]} 3. g3 {[%emt 0:00:14]} b5 {[%emt 0:00:08][%cal Bb7b5,Bb5b4][%mdl 32]} 4. a4 {[%emt 0:00:16]} b4 {[%emt 0:00:45]} 5. Nd5 {[%emt 0:00:08]} e6 {[%emt 0:03:08]} 6. Ne3 {[%emt 0:00:08] B23: Closed Sicilian: Lines without g3.} Bb7 {[%emt 0:04:39]} 7. Bg2 {[%emt 0:00:37] [#]} Nc6 $146 {[%emt 0:01:30]} ({Predecessor:} 7... Nf6 8. d3 d5 9. exd5 Nxd5 10. Nc4 Nd7 11. Nf3 Be7 12. a5 O-O 13. O-O Qc7 {1-0 (39) Lagarde,M (2659)-Sebag,M (2433) Orsay 2018}) 8. d3 {[%emt 0:01:17] The position is equal.} d6 {[%emt 0:05:53]} 9. Nh3 {[%emt 0:01:16]} Nf6 {[%emt 0:03:36]} 10. O-O {[%emt 0:01:04]} Be7 {[%emt 0:04:04]} 11. f4 {[%emt 0:07:37][%cal Bf2f4,Bf4f5][%mdl 32]} h5 {[%emt 0:17:32]} 12. f5 {[%emt 0:24:15]} e5 {[%emt 0:00:51]} 13. c3 {[%emt 0:00:18]} a5 {[%emt 0:06:06]} ({Better is} 13... Na5 $11) 14. Qb3 {[%emt 0:06:14]} Ba6 {[%emt 0:04:08]} 15. Ng5 {[%emt 0:02:09]} Rf8 {[%emt 0:01:58]} 16. Qd1 {[%emt 0:00:47]} Ng4 {[%emt 0:08:32]} 17. f6 {[%emt 0:09:33]} gxf6 {[%emt 0:05:03] ...Nxe3 is the strong threat.} ({Not} 17... Bxf6 18. Nh7 $16) 18. Nh7 {[%emt 0:09:16]} Rg8 {[%emt 0:07:04]} 19. Nd5 {[%emt 0:03:26]} ({White should try} 19. Nf5 $1 $16) 19... Rg7 $14 {[%emt 0:02:26] [#]} 20. h3 $1 {[%emt 0:01:27][%cal Bh2h3,Bh3g4,Bg4g5,Bg5f6][%mdl 32]} Rxh7 {[%emt 0:01:21]} 21. hxg4 {[%emt 0:00:09]} h4 {[%emt 0:00:56]} (21... hxg4 $14 22. Qxg4 Kf8) 22. gxh4 {[%emt 0:04:27]} (22. Rf5 $142 $1) 22... Rxh4 $16 {[%emt 0:00:05]} 23. Qf3 {[%emt 0:00:22]} (23. Rf5 $16) 23... Bc8 $11 {[%emt 0:01:32]} 24. g5 {[%emt 0:03:07][%cal Rg5f6]} Bg4 {[%emt 0:05:31]} 25. Qf2 {[%emt 0:00:44]} Rh8 {[%emt 0:03:45]} 26. gxf6 {[%emt 0:02:10]} Bf8 {[%emt 0:00:04]} 27. Qg3 {[%emt 0:04:19]} Be6 {[%emt 0:00:51]} 28. Be3 {[%emt 0:07:13]} Rb8 {[%emt 0:01:10]} 29. Rab1 {[%emt 0:01:56]} Kd7 {[%emt 0:00:31]} 30. d4 {[%emt 0:00:39]} (30. Kf2 $1 $11 {keeps the balance.}) 30... cxd4 $17 {[%emt 0:02:15]} 31. cxd4 {[%emt 0:00:04] [#]} Bh6 $1 {[%emt 0:04:23]} 32. dxe5 {[%emt 0:00:56]} Rg8 {[%emt 0:01:43] The board is on fire.} 33. Qh4 {[%emt 0:04:54][%mdl 8192]} (33. Qe1 $17 {prevents the worst.} Bh3 34. Rf2 Nxe5 35. Qe2 (35. Bxh6 $2 Rxg2+ 36. Kh1 Nd3 $19)) 33... Bxe3+ $19 {[%emt 0:00:46]} 34. Nxe3 {[%emt 0:00:04]} Qb6 {[%emt 0:00:17]} 35. Qf4 {[%emt 0:03:19]} Nxe5 {[%emt 0:02:11]} 36. Rbd1 {[%emt 0:01:23]} Nc4 {[%emt 0:01:39]} 37. Rfe1 {[%emt 0:00:23]} Rg4 $2 {[%emt 0:01:32]} (37... Nxb2 38. Rd2 Nc4) 38. Qf2 {[%emt 0:00:26]} Nxe3 {[%emt 0:00:35]} 39. Qxe3 {[%emt 0:00:10]} Qxe3+ {[%emt 0:00:40]} 40. Rxe3 {[%emt 0:00:01]} Rbg8 {[%emt 0:00:19]} 41. Rd2 {[%emt 0:30:33]} Kc7 {[%emt 0:02:33]} 42. Rc2+ {[%emt 0:00:00]} Kb8 {[%emt 0:05:56]} 43. Rd3 {[%emt 0:00:00] Against d5} (43. Rd2 $17) 43... d5 {[%emt 0:05:53]} 44. Kf1 $2 {[%emt 0:00:00]} (44. Rdd2 b3 45. Rc5) 44... dxe4 {[%emt 0:01:37]} 45. Re3 {[%emt 0:00:00]} Bd5 {[%emt 0:01:34]} 46. Bh3 {[%emt 0:01:45]} Rf4+ {[%emt 0:02:12]} 47. Ke2 {[%emt 0:00:12]} Bb7 {[%emt 0:01:28] Hoping for ...Rg1.} 48. Rc5 {[%emt 0:00:30]} Ba6+ {[%emt 0:01:13]} 49. Kd1 {[%emt 0:01:49]} Rg1+ {[%emt 0:02:53]} 50. Re1 {[%emt 0:01:29]} Rxe1+ {[%emt 0:02:21]} 51. Kxe1 {[%emt 0:00:01][%mdl 4096] Endgame [#] KRB-KRB} e3 $1 {[%emt 0:00:36][%cal Be4e3,Be3e2][%mdl 32]} 52. Rxa5 {[%emt 0:00:22]} Rxf6 {[%emt 0:00:39] Strongly threatening ...Rc6.} 53. Re5 $2 {[%emt 0:01:13]} (53. Bf5 Rc6 54. Rd5 Rc1+ 55. Rd1 Rxd1+ 56. Kxd1) 53... e2 {[%emt 0:01:57] aiming for ...Rf1+.} 54. Bf5 {[%emt 0:00:56]} Rh6 $2 {[%emt 0:02:09]} (54... Rc6 $19 {Threatens to win with ...Rc1+.} 55. Rxe2 Bxe2 56. Kxe2 Ka7) 55. Bc2 $2 {[%emt 0:00:16][%mdl 8192]} (55. Be4 $15) 55... Rh1+ {[%emt 0:01:02]} 56. Kd2 {[%emt 0:00:04]} f5 {[%emt 0:00:33][%cal Bf7f5,Bf5f4][%mdl 32]} 57. Re8+ {[%emt 0:01:24]} Kc7 {[%emt 0:00:13] And now ...f4 would win.} 58. a5 {[%emt 0:00:43]} f4 {[%emt 0:00:36] Black mates.} 59. Re7+ {[%emt 0:00:34]} Kd6 {[%emt 0:01:41]} 60. Rxe2 {[%emt 0:00:02]} Bxe2 {[%emt 0:00:20]} 61. Kxe2 {[%emt 0:00:01] KR-KB} Rh2+ {[%emt 0:00:24]} 62. Kd3 {[%emt 0:00:17]} Kc5 {[%emt 0:00:57]} 63. b3 {[%emt 0:00:58]} Kb5 {[%emt 0:00:42]} 64. Bd1 {[%emt 0:00:22]} Rh1 {[%emt 0:01:35]} 65. Be2 {[%emt 0:00:13]} Kxa5 {[%emt 0:00:07]} 66. Ke4 {[%emt 0:00:35]} Rh4 {[%emt 0:00:35]} 67. Bf3 {[%emt 0:00:22]} Kb5 {[%emt 0:00:16]} 68. Kd4 {[%emt 0:00:51]} Rh3 {[%emt 0:00:33]} 69. Bd5 {[%emt 0:00:57]} Rc3 {[%emt 0:00:26] Weighted Error Value: White=0.86/Black=0.32} 0-1

[Event "Mitropa Cup Women 2022"]
[Site "Corte"]
[Date "2022.05.05"]
[Round "6.4"]
[White "Vidic, Teja"]
[Black "Pellicoro, Nathalie"]
[Result "1-0"]
[ECO "C95"]
[WhiteElo "2168"]
[BlackElo "1898"]
[Annotator "TA"]
[PlyCount "77"]
[EventDate "2022.04.30"]
[EventType "team-tourn"]
[EventCountry "FRA"]
[SourceTitle "playchess.com"]
[Source "ChessBase"]
[SourceQuality "1"]
[WhiteTeam "Slovenia"]
[BlackTeam "Switzerland"]
[WhiteTeamCountry "SLO"]
[BlackTeamCountry "SUI"]
[TimeControl "40/5400+30:1800+30"]

{[%evp 24,77,25,30,35,4,11,15,18,12,14,0,0,0,16,16,97,91,96,76,114,114,106,103,103,82,100,27,83,-8,0,0,28,11,93,33,109,91,185,106,202,206,330,327,473,463,443,115,577,582,29994,29995,29995,29996,29996,29997]} 1. e4 {[%emt 0:00:03]} e5 {[%emt 0:00:08]} 2. Nf3 {[%emt 0:00:04]} Nc6 {[%emt 0:00:09]} 3. Bb5 {[%emt 0:00:05]} a6 {[%emt 0:00:09]} 4. Ba4 {[%emt 0:00:07]} Nf6 {[%emt 0:00:15]} 5. O-O {[%emt 0:00:17]} Be7 {[%emt 0:00:20]} 6. Re1 {[%emt 0:00:08]} b5 {[%emt 0:00:23]} 7. Bb3 {[%emt 0:00:05]} d6 {[%emt 0:00:24]} 8. c3 {[%emt 0:00:31]} O-O {[%emt 0:00:32]} 9. h3 {[%emt 0:00:04]} Nb8 {[%emt 0:00:31]} 10. d4 {[%emt 0:00:30]} Nbd7 {[%emt 0:00:13]} 11. Nbd2 {[%emt 0:01:32][%cal Bb1d2,Bd2f1,Bf1g3][%mdl 32]} Bb7 {[%emt 0:00:14]} 12. Bc2 {[%emt 0:00:06]} c5 {[%emt 0:00:24]} 13. d5 $1 {[%emt 0:05:22] 13.d5 scores better than 13.Nf1.} c4 {[%emt 0:00:08] C95: Closed Ruy Lopez: Breyer Variation with 10 d4.} 14. a4 {[%emt 0:00:04]} Qc7 {[%emt 0:02:19]} 15. Nf1 {[%emt 0:00:50]} Rfb8 {[%emt 0:01:01] The position is equal.} 16. Ng3 {[%emt 0:06:04]} g6 {[%emt 0:02:14]} 17. Nh2 {[%emt 0:00:23]} Nc5 {[%emt 0:04:15] [#]} 18. Qe2 $146 {[%emt 0:15:38]} ({Predecessor:} 18. axb5 axb5 19. Rxa8 Rxa8 20. f4 Ra1 21. Qf3 b4 22. cxb4 Nd3 23. Bxd3 cxd3 24. Qf1 Qc4 {½-½ (72) Klein,F (2364)-Van den Doel,E (2569) Germany 2016}) 18... Bf8 {[%emt 0:04:52]} 19. f4 {[%emt 0:04:36][%cal Bf2f4,Bf4f5][%mdl 32]} Nfd7 {[%emt 0:05:22]} (19... exf4 $11 {keeps the balance.} 20. Bxf4 Nfd7) 20. f5 $16 {[%emt 0:01:42]} Nf6 {[%emt 0:05:51]} 21. Rf1 {[%emt 0:05:13] [#] Threatens to win with fxg6.} Bg7 {[%emt 0:00:25]} 22. Bg5 {[%emt 0:02:07] Hoping for fxg6.} Rf8 {[%emt 0:01:50]} 23. Qd2 {[%emt 0:10:50]} Ncd7 {[%emt 0:04:05]} 24. Bh6 {[%emt 0:05:22]} Rab8 {[%emt 0:03:03]} 25. h4 {[%emt 0:05:19]} (25. Rf2 $16) 25... Kh8 {[%emt 0:06:27]} (25... Bxh6 $11 26. Qxh6 Kh8) 26. Qg5 {[%emt 0:06:23]} ({Better is} 26. Bxg7+ $16 Kxg7 27. h5) 26... Bxh6 {[%emt 0:02:39]} 27. Qxh6 {[%emt 0:00:05]} Ng8 {[%emt 0:00:34]} 28. Qd2 {[%emt 0:02:59]} h6 {[%emt 0:02:02]} (28... bxa4 $11 29. Rxa4 Bc8) 29. Rf2 {[%emt 0:02:40]} (29. Ng4 $16) 29... Kg7 {[%emt 0:02:03]} (29... Ndf6 $1 $14) 30. Raf1 {[%emt 0:00:38] Black must now prevent Ng4. White is more active.} bxa4 {[%emt 0:04:17]} (30... Ndf6 $16) 31. Bxa4 {[%emt 0:01:55]} ({White should play} 31. Ng4 $18) 31... Nc5 {[%emt 0:01:03]} (31... Ndf6 $16) 32. Bc2 $18 {[%emt 0:01:03]} a5 {[%emt 0:03:39]} (32... f6 $142 33. fxg6 Bc8) 33. h5 {[%emt 0:03:39]} g5 {[%emt 0:03:00]} (33... Bc8 $142 34. fxg6 f6) 34. f6+ {[%emt 0:00:07]} Kh7 {[%emt 0:00:33]} 35. Nf3 $2 {[%emt 0:00:46]} (35. Rf5 $18 {is the precise move to win.}) 35... Nd7 $2 {[%emt 0:04:12][%mdl 8192] [#] Black cannot hold the game after this.} (35... Bc8 $16) 36. Nxg5+ $1 {[%emt 0:01:10][%mdl 512]} hxg5 {[%emt 0:00:08]} (36... Kh8 37. Ne6) 37. Qxg5 {[%emt 0:00:04][%csl Gf6][%cal Rg5g7] White mates.} Ndxf6 {[%emt 0:01:24]} 38. Rxf6 {[%emt 0:00:38]} Bc8 {[%emt 0:04:33]} 39. h6 {[%emt 0:00:20] Weighted Error Value: White=0.38/Black=0.66} 1-0

[Event "Mitropa Cup Women 2022"]
[Site "Corte"]
[Date "2022.05.05"]
[Round "6.4"]
[White "Buchholz, Maja"]
[Black "Vujnovic, Patricija"]
[Result "1-0"]
[ECO "A00"]
[WhiteElo "1945"]
[BlackElo "2108"]
[Annotator "TA"]
[PlyCount "65"]
[EventDate "2022.04.30"]
[EventType "team-tourn"]
[EventCountry "FRA"]
[SourceTitle "playchess.com"]
[Source "ChessBase"]
[SourceQuality "1"]
[WhiteTeam "Germany"]
[BlackTeam "Croatia"]
[WhiteTeamCountry "GER"]
[BlackTeamCountry "CRO"]
[TimeControl "40/5400+30:1800+30"]

{[%evp 14,65,-29,-29,0,-10,0,0,10,-8,52,11,12,20,32,0,0,0,0,-37,-38,-28,-24,-137,-133,-189,-79,-60,-74,-68,0,0,0,0,0,-43,15,-6,-7,-66,0,-29,312,315,1032,1011,5306,5281,29992,29993,29993,29994,29997,29998]} 1. Nc3 {[%emt 0:00:03]} c5 {[%emt 0:03:01]} 2. e4 {[%emt 0:00:08]} e6 {[%emt 0:00:15]} 3. g3 {[%emt 0:00:36]} Nc6 {[%emt 0:03:33]} 4. Bg2 {[%emt 0:00:30]} g6 {[%emt 0:01:49]} 5. Nge2 {[%emt 0:00:29]} Bg7 {[%emt 0:00:26]} 6. O-O {[%emt 0:00:44]} Nge7 {[%emt 0:00:48]} 7. f4 {[%emt 0:12:20]} d6 {[%emt 0:00:08]} 8. d3 {[%emt 0:00:59]} Rb8 {[%emt 0:01:19] B25: Closed Sicilian: 3 g3, lines without early Be3.} 9. Be3 {[%emt 0:04:24]} Nd4 {[%emt 0:00:24]} 10. Rb1 {[%emt 0:05:08]} Nec6 {[%emt 0:02:55] The position is equal.} 11. a3 {[%emt 0:07:28] [#]} b5 $146 {[%emt 0:07:01]} (11... O-O $11) ({Predecessor:} 11... a5 12. Bf2 h5 13. h3 b5 14. Nxd4 Nxd4 15. Ne2 b4 16. Nxd4 cxd4 17. axb4 axb4 {½-½ (33) Mosquera Cayon,D-Flores Lambert,Y (2013) Guantanamo 2009}) 12. b4 {[%emt 0:01:08]} (12. e5 $5) 12... cxb4 {[%emt 0:02:13]} 13. axb4 {[%emt 0:00:08]} O-O {[%emt 0:02:50]} 14. g4 {[%emt 0:10:36][%cal Of4f5]} a5 {[%emt 0:02:52]} 15. bxa5 {[%emt 0:04:14][%cal Of4f5]} b4 {[%emt 0:04:25]} 16. Na2 {[%emt 0:08:19]} Qxa5 {[%emt 0:16:17]} 17. Nac1 {[%emt 0:00:51]} Bd7 {[%emt 0:04:51]} 18. Ng3 {[%emt 0:05:07]} (18. h3 $11 {remains equal.}) 18... Nb5 {[%emt 0:03:45]} 19. Nce2 {[%emt 0:02:29]} (19. Nb3 $17 {was called for.} Qa2 20. Qd2) 19... Nc3 {[%emt 0:05:54]} (19... Na3 $19 {and Black stays clearly on top.} 20. Rc1 Bb2) 20. Nxc3 $17 {[%emt 0:00:10]} bxc3 {[%emt 0:00:59]} 21. Ra1 {[%emt 0:01:17]} Qc7 {[%emt 0:03:20]} (21... Qd8 $15) 22. f5 $11 {[%emt 0:01:46]} exf5 {[%emt 0:00:25]} 23. gxf5 {[%emt 0:00:44]} Rfe8 {[%emt 0:01:09]} 24. Qg4 {[%emt 0:03:08]} d5 {[%emt 0:10:04]} (24... Nd4 $15 25. Rf2 Nxf5 $1 26. exf5 Rxe3) 25. Qh4 {[%emt 0:12:23]} (25. exd5 $5 Rxe3 26. dxc6 Bxc6 27. fxg6 hxg6 28. Bxc6 $11) 25... Rb2 {[%emt 0:02:13]} 26. Rf2 {[%emt 0:06:02]} ({Better is} 26. exd5 $11 Rxe3 27. dxc6 Bxc6 28. fxg6 hxg6 29. Qc4) 26... dxe4 {[%emt 0:02:14]} (26... Ne5 $15) 27. f6 {[%emt 0:02:12]} exd3 $2 {[%emt 0:04:11][%mdl 8192]} 28. fxg7 $18 {[%emt 0:01:44] Really sharp!} Rxe3 $2 {[%emt 0:00:32] [#]} (28... Rxc2 29. Ne4 (29. Rxc2 Rxe3 30. Rf2 d2 $16) 29... Rxf2 30. Qxf2 (30. Bxf2 Rxe4 31. Bxe4 d2 $16) 30... Rxe4 31. Bxe4 d2) 29. Rxf7 $3 {[%emt 0:01:25][%mdl 512] White threatens Qf6 and mate.} Rxg3 {[%emt 0:09:58]} (29... Nd8 30. Rf8+) 30. hxg3 {[%emt 0:02:25] Threatening mate with Qf6.} (30. Qxg3 $2 {is the wrong capture.} Qxg3 31. Ra8+ Nb8 32. hxg3 Kxf7 $19) 30... Kxf7 {[%emt 0:02:07]} 31. Qxh7 {[%emt 0:00:16] White mates.} Qb6+ {[%emt 0:00:56]} 32. Kh2 {[%emt 0:00:51]} Ne7 {[%emt 0:01:37]} 33. g8=Q+ {[%emt 0:00:17] Quite a comeback for White.  Weighted Error Value: White=0.25 (precise) /Black=0.53} 1-0